[Event "Live Chess"]
[Site "Chess.com"]
[Date "2024.06.01"]
[Round "-"]
[White "StoreySniper"]
[Black "Demyan7777"]
[Result "0-1"]
[WhiteElo "2532"]
[BlackElo "1836"]
[TimeControl "300"]
[EndTime "12:13:26 PDT"]
[Termination "Demyan7777 won by resignation"]

1. e4 {[%clk 0:04:58]} 1... c5 {[%clk 0:04:59]} 2. Nf3 {[%clk 0:04:56.9]} 2...
d6 {[%clk 0:04:58.7]} 3. d4 {[%clk 0:04:56.2]} 3... cxd4 {[%clk 0:04:58.1]} 4.
Nxd4 {[%clk 0:04:55.9]} 4... Nf6 {[%clk 0:04:57.6]} 5. Nc3 {[%clk 0:04:55.2]}
5... a6 {[%clk 0:04:57.2]} 6. Be2 {[%clk 0:04:52.8]} 6... e6 {[%clk 0:04:56]} 7.
O-O {[%clk 0:04:51.7]} 7... Be7 {[%clk 0:04:55.6]} 8. f4 {[%clk 0:04:50.7]} 8...
O-O {[%clk 0:04:55]} 9. Kh1 {[%clk 0:04:49.8]} 9... Qc7 {[%clk 0:04:52.4]} 10.
g4 {[%clk 0:04:48.1]} 10... b5 {[%clk 0:04:51.5]} 11. g5 {[%clk 0:04:47.3]}
11... Nfd7 {[%clk 0:04:50.1]} 12. f5 {[%clk 0:04:45.1]} 12... exf5 {[%clk
0:04:43.3]} 13. exf5 {[%clk 0:04:40.2]} 13... Bb7+ {[%clk 0:04:42.1]} 14. Bf3
{[%clk 0:04:39.5]} 14... Ne5 {[%clk 0:04:41.4]} 15. Nd5 {[%clk 0:04:33.6]} 15...
Qd7 {[%clk 0:04:16.4]} 16. Bg2 {[%clk 0:04:22.2]} 16... Bd8 {[%clk 0:04:10.9]}
17. f6 {[%clk 0:04:15.5]} 17... Re8 {[%clk 0:04:06.1]} 18. Bf4 {[%clk
0:04:12.2]} 18... g6 {[%clk 0:04:03.2]} 19. Qe1 {[%clk 0:03:50.4]} 19... Nf3
{[%clk 0:03:54.4]} 20. Bxf3 {[%clk 0:03:40.5]} 20... Rxe1 {[%clk 0:03:51.5]} 21.
Raxe1 {[%clk 0:03:40.1]} 21... Nc6 {[%clk 0:03:49.5]} 22. Nb6 {[%clk 0:03:35.8]}
22... Bxb6 {[%clk 0:03:46.8]} 23. Nxc6 {[%clk 0:03:25.1]} 23... Bxc6 {[%clk
0:03:45.6]} 24. Re7 {[%clk 0:03:24.6]} 24... Bxf3+ {[%clk 0:03:44.1]} 25. Rxf3
{[%clk 0:03:23.6]} 25... Qc6 {[%clk 0:03:43.6]} 26. Kg2 {[%clk 0:03:20.4]} 26...
Qxc2+ {[%clk 0:03:38.2]} 27. Kg3 {[%clk 0:03:19.4]} 27... Qd1 {[%clk 0:03:26.1]}
28. Be3 {[%clk 0:03:16.1]} 28... Bxe3 {[%clk 0:03:11.5]} 29. Rfxe3 {[%clk
0:03:15.3]} 29... Rf8 {[%clk 0:03:10.5]} 30. h4 {[%clk 0:03:07.5]} 30... Qg1+
{[%clk 0:03:09.2]} 31. Kf3 {[%clk 0:03:02.5]} 31... Qh2 {[%clk 0:03:05.1]} 32.
Kg4 {[%clk 0:02:38.2]} 32... Qxb2 {[%clk 0:02:59]} 33. a3 {[%clk 0:02:35.6]}
33... Qd4+ {[%clk 0:02:57.2]} 34. R7e4 {[%clk 0:02:32.2]} 34... Qd5 {[%clk
0:02:55.3]} 35. h5 {[%clk 0:02:29.6]} 35... Qf5+ {[%clk 0:02:52.6]} 36. Kh4
{[%clk 0:02:29]} 36... Qf2+ {[%clk 0:02:51.7]} 37. Kg4 {[%clk 0:02:27]} 37...
Qf5+ {[%clk 0:02:37.5]} 38. Kh4 {[%clk 0:02:25.8]} 38... d5 {[%clk 0:02:36.8]}
39. Rg4 {[%clk 0:02:14.2]} 39... Qf2+ {[%clk 0:02:35.3]} 40. Reg3 {[%clk
0:02:13.4]} 40... gxh5 {[%clk 0:02:33.1]} 41. Rb4 {[%clk 0:01:58.7]} 41... Re8
{[%clk 0:02:24.6]} 42. Kh3 {[%clk 0:01:55.9]} 42... Re3 {[%clk 0:02:20.5]} 0-1

[Event "Live Chess"]
[Site "Chess.com"]
[Date "2024.06.01"]
[Round "-"]
[White "Ferrarifan27"]
[Black "IanCalvert2"]
[Result "1-0"]
[WhiteElo "2056"]
[BlackElo "1540"]
[TimeControl "300"]
[EndTime "12:13:49 PDT"]
[Termination "Ferrarifan27 won on time"]

1. e4 {[%clk 0:04:55.7]} 1... d5 {[%clk 0:04:55.5]} 2. exd5 {[%clk 0:04:54.1]}
2... Qxd5 {[%clk 0:04:51]} 3. Nc3 {[%clk 0:04:53]} 3... Qd6 {[%clk 0:04:49.9]}
4. d4 {[%clk 0:04:51.9]} 4... Nf6 {[%clk 0:04:48.1]} 5. Nf3 {[%clk 0:04:50.9]}
5... a6 {[%clk 0:04:46.6]} 6. Be2 {[%clk 0:04:47.5]} 6... Bf5 {[%clk 0:04:44.3]}
7. O-O {[%clk 0:04:46.4]} 7... Nc6 {[%clk 0:04:43.1]} 8. h3 {[%clk 0:04:40.7]}
8... O-O-O {[%clk 0:04:40.9]} 9. Be3 {[%clk 0:04:40]} 9... e5 {[%clk 0:04:39.2]}
10. dxe5 {[%clk 0:04:38.1]} 10... Nxe5 {[%clk 0:04:36.7]} 11. Qxd6 {[%clk
0:04:35.9]} 11... Nxf3+ {[%clk 0:04:30.9]} 12. Bxf3 {[%clk 0:04:34.4]} 12...
Bxd6 {[%clk 0:04:29.6]} 13. Rac1 {[%clk 0:04:26.9]} 13... Rhe8 {[%clk
0:04:26.4]} 14. Bg5 {[%clk 0:04:24.4]} 14... Be5 {[%clk 0:04:21.3]} 15. Bxf6
{[%clk 0:03:48.6]} 15... Bxf6 {[%clk 0:04:15.1]} 16. Nd5 {[%clk 0:03:47.6]}
16... Bg5 {[%clk 0:03:27.9]} 17. Rce1 {[%clk 0:03:12.6]} 17... Bxc2 {[%clk
0:03:15.4]} 18. h4 {[%clk 0:02:51.7]} 18... Bd2 {[%clk 0:02:55.7]} 19. Ne7+
{[%clk 0:02:38.3]} 19... Kb8 {[%clk 0:02:41.8]} 20. Re2 {[%clk 0:02:25.8]} 20...
Bd3 {[%clk 0:02:34.9]} 21. Rxd2 {[%clk 0:02:23.6]} 21... Bxf1 {[%clk 0:02:32.6]}
22. Rxd8+ {[%clk 0:02:22]} 22... Rxd8 {[%clk 0:02:29.6]} 23. Kxf1 {[%clk
0:02:20.7]} 23... Rd2 {[%clk 0:02:21.6]} 24. Nf5 {[%clk 0:02:19.3]} 24... g6
{[%clk 0:02:06.8]} 25. Nh6 {[%clk 0:02:18.1]} 25... f5 {[%clk 0:02:03.8]} 26. g3
{[%clk 0:01:59.7]} 26... c6 {[%clk 0:01:56.6]} 27. h5 {[%clk 0:01:46.2]} 27...
Rxb2 {[%clk 0:01:50]} 28. hxg6 {[%clk 0:01:44.9]} 28... hxg6 {[%clk 0:01:47.1]}
29. Ng8 {[%clk 0:01:44]} 29... g5 {[%clk 0:01:18.1]} 30. Ne7 {[%clk 0:01:36]}
30... g4 {[%clk 0:01:15.7]} 31. Be2 {[%clk 0:01:31]} 31... Rxa2 {[%clk
0:01:02.5]} 32. Nxf5 {[%clk 0:01:29.7]} 32... a5 {[%clk 0:00:40.6]} 33. Bxg4
{[%clk 0:01:26.1]} 33... a4 {[%clk 0:00:37.7]} 34. Ne3 {[%clk 0:01:18.3]} 34...
a3 {[%clk 0:00:33.9]} 35. Be6 {[%clk 0:01:15.6]} 35... Rb2 {[%clk 0:00:17.7]}
36. g4 {[%clk 0:01:12.5]} 36... a2 {[%clk 0:00:14.6]} 37. Bxa2 {[%clk
0:01:10.6]} 37... Rxa2 {[%clk 0:00:12.7]} 38. g5 {[%clk 0:01:10.1]} 38... Kc7
{[%clk 0:00:11.6]} 39. f4 {[%clk 0:01:04.8]} 39... Kd6 {[%clk 0:00:08.8]} 40. g6
{[%clk 0:00:59.7]} 40... Ke6 {[%clk 0:00:06.5]} 41. f5+ {[%clk 0:00:58.8]} 41...
Kf6 {[%clk 0:00:03.9]} 42. Ng4+ {[%clk 0:00:49.1]} 42... Kxf5 {[%clk 0:00:01.5]}
43. g7 {[%clk 0:00:48.2]} 1-0

[Event "Live Chess"]
[Site "Chess.com"]
[Date "2024.06.01"]
[Round "-"]
[White "Zhevzh1k7"]
[Black "mrsmarple1968"]
[Result "1-0"]
[WhiteElo "1101"]
[BlackElo "1744"]
[TimeControl "300"]
[EndTime "12:13:56 PDT"]
[Termination "Zhevzh1k7 won on time"]

1. e4 {[%clk 0:04:57.2]} 1... e5 {[%clk 0:04:58.4]} 2. f4 {[%clk 0:04:53.6]}
2... exf4 {[%clk 0:04:56.2]} 3. Bc4 {[%clk 0:04:51.3]} 3... d6 {[%clk
0:04:50.2]} 4. Nf3 {[%clk 0:04:46.2]} 4... Be6 {[%clk 0:04:46.8]} 5. Bxe6 {[%clk
0:04:44.5]} 5... fxe6 {[%clk 0:04:45.2]} 6. d4 {[%clk 0:04:42.7]} 6... Qf6
{[%clk 0:04:33.7]} 7. O-O {[%clk 0:04:35.6]} 7... g5 {[%clk 0:04:30.5]} 8. Nc3
{[%clk 0:04:21.8]} 8... c6 {[%clk 0:04:27.4]} 9. Qe2 {[%clk 0:04:11.8]} 9... Nd7
{[%clk 0:04:24]} 10. Bd2 {[%clk 0:04:03.1]} 10... O-O-O {[%clk 0:04:19.4]} 11.
Ne1 {[%clk 0:04:00.4]} 11... Qxd4+ {[%clk 0:04:12.9]} 12. Kh1 {[%clk 0:03:57.8]}
12... Bg7 {[%clk 0:03:48.8]} 13. Nf3 {[%clk 0:03:45.2]} 13... Qf6 {[%clk
0:03:46.7]} 14. Qc4 {[%clk 0:03:23.4]} 14... Kb8 {[%clk 0:03:23.7]} 15. Rac1
{[%clk 0:03:04.9]} 15... e5 {[%clk 0:02:56.1]} 16. Na4 {[%clk 0:02:52.1]} 16...
h6 {[%clk 0:02:45.8]} 17. Ba5 {[%clk 0:02:43.7]} 17... Rc8 {[%clk 0:02:31]} 18.
b4 {[%clk 0:02:29.6]} 18... g4 {[%clk 0:02:00.6]} 19. Nd2 {[%clk 0:02:03.4]}
19... Ne7 {[%clk 0:01:57]} 20. Nb3 {[%clk 0:01:49.7]} 20... d5 {[%clk 0:01:27]}
21. exd5 {[%clk 0:01:45]} 21... cxd5 {[%clk 0:01:25]} 22. Qb5 {[%clk 0:01:08.4]}
22... Qc6 {[%clk 0:01:21.8]} 23. Qxc6 {[%clk 0:00:56.7]} 23... Rxc6 {[%clk
0:01:19.2]} 24. b5 {[%clk 0:00:48.3]} 24... Rc4 {[%clk 0:01:12]} 25. Nb2 {[%clk
0:00:43.8]} 25... Rcc8 {[%clk 0:01:09.3]} 26. Bd2 {[%clk 0:00:42.1]} 26... Nc5
{[%clk 0:01:02.9]} 27. Nxc5 {[%clk 0:00:40.6]} 27... Rxc5 {[%clk 0:01:00.8]} 28.
a4 {[%clk 0:00:39]} 28... Rhc8 {[%clk 0:00:56.9]} 29. Rf2 {[%clk 0:00:35.1]}
29... Rxc2 {[%clk 0:00:52.2]} 30. Nd3 {[%clk 0:00:30.9]} 30... Rxc1+ {[%clk
0:00:49.1]} 31. Bxc1 {[%clk 0:00:30.5]} 31... Rc3 {[%clk 0:00:44.3]} 32. Rd2
{[%clk 0:00:24.2]} 32... h5 {[%clk 0:00:34.1]} 33. Bb2 {[%clk 0:00:17.6]} 33...
Rc4 {[%clk 0:00:30.8]} 34. Nxe5 {[%clk 0:00:14.8]} 34... Bxe5 {[%clk 0:00:22.3]}
35. Bxe5+ {[%clk 0:00:13.3]} 35... Kc8 {[%clk 0:00:21]} 36. Rd1 {[%clk
0:00:12.3]} 36... Rxa4 {[%clk 0:00:17.3]} 37. h3 {[%clk 0:00:11.9]} 37... Rc4
{[%clk 0:00:07.7]} 38. Bxf4 {[%clk 0:00:10]} 38... Rxf4 {[%clk 0:00:05.9]} 39.
hxg4 {[%clk 0:00:09.9]} 39... Rxg4 {[%clk 0:00:04.5]} 40. g3 {[%clk 0:00:09.3]}
40... Rc4 {[%clk 0:00:04.2]} 41. Kg2 {[%clk 0:00:08.8]} 41... Rc5 {[%clk
0:00:03.6]} 42. b6 {[%clk 0:00:07.7]} 42... axb6 {[%clk 0:00:02.2]} 43. Kf3
{[%clk 0:00:07.6]} 43... b5 {[%clk 0:00:01.7]} 44. Kf4 {[%clk 0:00:07.5]} 44...
b4 {[%clk 0:00:01.2]} 45. Kg5 {[%clk 0:00:07.4]} 45... b3 {[%clk 0:00:00.7]} 46.
Kf6 {[%clk 0:00:07.3]} 46... b2 {[%clk 0:00:00.2]} 47. Kxe7 {[%clk 0:00:07.1]}
1-0

[Event "Live Chess"]
[Site "Chess.com"]
[Date "2024.06.01"]
[Round "-"]
[White "DoctorMantisTobogganMD"]
[Black "Bob2pen"]
[Result "0-1"]
[WhiteElo "2176"]
[BlackElo "1898"]
[TimeControl "300"]
[EndTime "12:14:25 PDT"]
[Termination "Bob2pen won by checkmate"]

1. e4 {[%clk 0:04:59.3]} 1... e6 {[%clk 0:04:58]} 2. Nf3 {[%clk 0:04:58]} 2...
d5 {[%clk 0:04:56.9]} 3. e5 {[%clk 0:04:57.7]} 3... c5 {[%clk 0:04:55.8]} 4. b4
{[%clk 0:04:57.3]} 4... cxb4 {[%clk 0:04:54.4]} 5. d4 {[%clk 0:04:56.4]} 5...
Nc6 {[%clk 0:04:53.4]} 6. a3 {[%clk 0:04:55.9]} 6... bxa3 {[%clk 0:04:52.2]} 7.
c3 {[%clk 0:04:55.4]} 7... Nge7 {[%clk 0:04:50.3]} 8. Bd3 {[%clk 0:04:54.9]}
8... Bd7 {[%clk 0:04:45.4]} 9. Nxa3 {[%clk 0:04:53.2]} 9... a6 {[%clk
0:04:44.4]} 10. h4 {[%clk 0:04:50]} 10... Nf5 {[%clk 0:04:39.6]} 11. g4 {[%clk
0:04:47.8]} 11... Nfe7 {[%clk 0:04:36.2]} 12. h5 {[%clk 0:04:46.7]} 12... h6
{[%clk 0:04:29.6]} 13. g5 {[%clk 0:04:39.2]} 13... Nf5 {[%clk 0:04:26.9]} 14.
Bxf5 {[%clk 0:04:27.3]} 14... exf5 {[%clk 0:04:25.5]} 15. gxh6 {[%clk
0:04:26.7]} 15... gxh6 {[%clk 0:04:23.3]} 16. Qb3 {[%clk 0:04:19.3]} 16... b5
{[%clk 0:04:08.8]} 17. Qxd5 {[%clk 0:04:13.9]} 17... Ne7 {[%clk 0:04:07.5]} 18.
Qb3 {[%clk 0:03:42.6]} 18... Bc6 {[%clk 0:04:04.8]} 19. Rh3 {[%clk 0:03:33.8]}
19... Qd5 {[%clk 0:03:53.9]} 20. Qxd5 {[%clk 0:03:28.7]} 20... Nxd5 {[%clk
0:03:51.6]} 21. Bd2 {[%clk 0:03:23.6]} 21... Rg8 {[%clk 0:03:43.8]} 22. Kf1
{[%clk 0:02:23.8]} 22... a5 {[%clk 0:03:34.7]} 23. Nh4 {[%clk 0:02:14.1]} 23...
b4 {[%clk 0:03:26.3]} 24. cxb4 {[%clk 0:02:06.5]} 24... axb4 {[%clk 0:03:25]}
25. Nc2 {[%clk 0:02:06.1]} 25... Rxa1+ {[%clk 0:03:11.4]} 26. Ke2 {[%clk
0:01:50.9]} 26... Ra2 {[%clk 0:03:06.2]} 27. Ne3 {[%clk 0:01:43.7]} 27... Nxe3
{[%clk 0:03:03.8]} 28. Rxe3 {[%clk 0:01:39.3]} 28... Be4 {[%clk 0:02:58.8]} 29.
f3 {[%clk 0:01:34.3]} 29... Bc2 {[%clk 0:02:54.2]} 30. e6 {[%clk 0:01:14.1]}
30... fxe6 {[%clk 0:02:50.6]} 31. Rxe6+ {[%clk 0:01:11.1]} 31... Kd7 {[%clk
0:02:49.4]} 32. Rb6 {[%clk 0:01:07.3]} 32... b3 {[%clk 0:02:47]} 33. Bf4 {[%clk
0:01:01.3]} 33... Bd1+ {[%clk 0:02:37.5]} 34. Kd3 {[%clk 0:00:53.5]} 34... b2
{[%clk 0:02:29.1]} 35. Nxf5 {[%clk 0:00:49.5]} 35... Ra3+ {[%clk 0:02:25.8]} 36.
Kd2 {[%clk 0:00:40.1]} 36... Rb3 {[%clk 0:02:24.5]} 37. Ra6 {[%clk 0:00:24.5]}
37... Bb4+ {[%clk 0:02:17.2]} 38. Kxd1 {[%clk 0:00:17]} 38... b1=Q+ {[%clk
0:02:15.4]} 39. Ke2 {[%clk 0:00:16.1]} 39... Qe1# {[%clk 0:02:12.4]} 0-1

[Event "Live Chess"]
[Site "Chess.com"]
[Date "2024.06.01"]
[Round "-"]
[White "KwikPhoenix"]
[Black "gmnorfolk"]
[Result "1-0"]
[WhiteElo "2452"]
[BlackElo "2060"]
[TimeControl "300"]
[EndTime "12:14:32 PDT"]
[Termination "KwikPhoenix won by resignation"]

1. b3 {[%clk 0:04:58.3]} 1... e5 {[%clk 0:04:58.6]} 2. Bb2 {[%clk 0:04:58.2]}
2... Nc6 {[%clk 0:04:57.1]} 3. e3 {[%clk 0:04:57.9]} 3... Nf6 {[%clk 0:04:56.5]}
4. Bb5 {[%clk 0:04:57.3]} 4... e4 {[%clk 0:04:55.3]} 5. c4 {[%clk 0:04:56.1]}
5... a6 {[%clk 0:04:52.7]} 6. Bxc6 {[%clk 0:04:55.3]} 6... dxc6 {[%clk
0:04:52.6]} 7. Nc3 {[%clk 0:04:54.5]} 7... Bd6 {[%clk 0:04:51.1]} 8. Qc2 {[%clk
0:04:53.6]} 8... Qe7 {[%clk 0:04:49.7]} 9. Nge2 {[%clk 0:04:49.4]} 9... Bf5
{[%clk 0:04:35.1]} 10. Ng3 {[%clk 0:04:47.7]} 10... Bg6 {[%clk 0:04:33.9]} 11.
O-O-O {[%clk 0:04:42.1]} 11... O-O-O {[%clk 0:04:31.1]} 12. Nce2 {[%clk
0:04:41.1]} 12... h5 {[%clk 0:04:26.7]} 13. Nd4 {[%clk 0:04:38.4]} 13... Qd7
{[%clk 0:04:21.6]} 14. Qc3 {[%clk 0:04:18.6]} 14... h4 {[%clk 0:04:14.2]} 15.
Nge2 {[%clk 0:04:17.4]} 15... h3 {[%clk 0:04:11.4]} 16. g3 {[%clk 0:04:15.5]}
16... Bh5 {[%clk 0:04:10.4]} 17. Rde1 {[%clk 0:04:10.6]} 17... c5 {[%clk
0:04:08]} 18. Nc2 {[%clk 0:04:05.9]} 18... Bf3 {[%clk 0:04:06.6]} 19. Rhg1
{[%clk 0:04:03.8]} 19... Ng4 {[%clk 0:04:04.2]} 20. Nf4 {[%clk 0:03:53.3]} 20...
Be5 {[%clk 0:03:56.7]} 21. Qa5 {[%clk 0:03:52.6]} 21... Bxb2+ {[%clk 0:03:47.7]}
22. Kxb2 {[%clk 0:03:52.5]} 22... g5 {[%clk 0:03:36.4]} 23. Nd5 {[%clk
0:03:46.4]} 23... Qc6 {[%clk 0:03:31.9]} 24. Ne7+ {[%clk 0:03:44.9]} 24... Kb8
{[%clk 0:03:28.7]} 25. Nxc6+ {[%clk 0:03:44.8]} 25... bxc6 {[%clk 0:03:27.8]}
26. Qxc5 {[%clk 0:03:42.2]} 26... Rxd2 {[%clk 0:03:25.4]} 27. Qb4+ {[%clk
0:03:41.7]} 1-0

[Event "Live Chess"]
[Site "Chess.com"]
[Date "2024.06.01"]
[Round "-"]
[White "NAZRIZ1977"]
[Black "Nazar-Makarchuk"]
[Result "1-0"]
[WhiteElo "2127"]
[BlackElo "1522"]
[TimeControl "300"]
[EndTime "12:14:35 PDT"]
[Termination "NAZRIZ1977 won by resignation"]

1. c4 {[%clk 0:04:55.2]} 1... d5 {[%clk 0:04:56.8]} 2. cxd5 {[%clk 0:04:52.5]}
2... Nf6 {[%clk 0:04:56.2]} 3. g3 {[%clk 0:04:51.5]} 3... Nxd5 {[%clk
0:04:55.6]} 4. Bg2 {[%clk 0:04:51]} 4... Nc6 {[%clk 0:04:54.8]} 5. Nf3 {[%clk
0:04:50.4]} 5... Nf6 {[%clk 0:04:53.9]} 6. O-O {[%clk 0:04:48.5]} 6... Bg4
{[%clk 0:04:53.3]} 7. h3 {[%clk 0:04:46.5]} 7... Bxf3 {[%clk 0:04:52.1]} 8. Bxf3
{[%clk 0:04:45.4]} 8... Qd6 {[%clk 0:04:51]} 9. Nc3 {[%clk 0:04:42.7]} 9...
O-O-O {[%clk 0:04:50.3]} 10. Qa4 {[%clk 0:04:39.9]} 10... Nd4 {[%clk 0:04:41.6]}
11. Bg2 {[%clk 0:04:36.6]} 11... a6 {[%clk 0:04:34.6]} 12. e3 {[%clk 0:04:32.9]}
12... Nc6 {[%clk 0:04:28.7]} 13. d4 {[%clk 0:04:24.6]} 13... Qb4 {[%clk
0:04:26.6]} 14. Bxc6 {[%clk 0:04:22.3]} 14... Qxa4 {[%clk 0:04:22.3]} 15. Bxa4
{[%clk 0:04:21.1]} 15... b5 {[%clk 0:04:20.7]} 16. Bb3 {[%clk 0:04:19.4]} 16...
e6 {[%clk 0:04:19.3]} 17. Rd1 {[%clk 0:04:17.3]} 17... Bb4 {[%clk 0:04:17.9]}
18. a3 {[%clk 0:04:15.1]} 18... Bxc3 {[%clk 0:04:15.9]} 19. bxc3 {[%clk
0:04:14.2]} 19... Nd5 {[%clk 0:04:12.8]} 20. Bxd5 {[%clk 0:04:12.8]} 20... Rxd5
{[%clk 0:04:11.4]} 21. e4 {[%clk 0:04:11.6]} 21... Rd6 {[%clk 0:04:08.5]} 22.
Bf4 {[%clk 0:04:10.9]} 22... Rd7 {[%clk 0:04:06.5]} 23. a4 {[%clk 0:04:10.1]}
23... bxa4 {[%clk 0:04:03.9]} 24. Rxa4 {[%clk 0:04:08.8]} 24... Kb7 {[%clk
0:04:03.2]} 25. Rb1+ {[%clk 0:04:06.1]} 25... Ka7 {[%clk 0:04:00.9]} 26. d5
{[%clk 0:04:05.2]} 26... exd5 {[%clk 0:03:58.7]} 27. Be3+ {[%clk 0:04:04.3]} 1-0

[Event "Live Chess"]
[Site "Chess.com"]
[Date "2024.06.01"]
[Round "-"]
[White "matt1979"]
[Black "nitrofish07"]
[Result "1-0"]
[WhiteElo "1384"]
[BlackElo "2125"]
[TimeControl "300"]
[EndTime "12:14:37 PDT"]
[Termination "matt1979 won by resignation"]

1. f4 {[%clk 0:04:58.4]} 1... d5 {[%clk 0:04:59.3]} 2. e3 {[%clk 0:04:56.5]}
2... c5 {[%clk 0:04:57.6]} 3. Nf3 {[%clk 0:04:55.3]} 3... Nc6 {[%clk 0:04:48.5]}
4. Bb5 {[%clk 0:04:53.8]} 4... Bd7 {[%clk 0:04:45.8]} 5. O-O {[%clk 0:04:51.8]}
5... g6 {[%clk 0:04:44]} 6. d3 {[%clk 0:04:49.3]} 6... Bg7 {[%clk 0:04:41.6]} 7.
Nc3 {[%clk 0:04:46.8]} 7... e6 {[%clk 0:04:39.5]} 8. Bxc6 {[%clk 0:04:45.3]}
8... Bxc6 {[%clk 0:04:37.8]} 9. Ne5 {[%clk 0:04:43.2]} 9... Ne7 {[%clk
0:04:36.7]} 10. Nxc6 {[%clk 0:04:40.6]} 10... Nxc6 {[%clk 0:04:36.6]} 11. Qe1
{[%clk 0:04:32.9]} 11... O-O {[%clk 0:04:35.1]} 12. e4 {[%clk 0:04:31.3]} 12...
Nd4 {[%clk 0:04:32.1]} 13. Qf2 {[%clk 0:04:22.7]} 13... b5 {[%clk 0:04:21.6]}
14. Nd1 {[%clk 0:04:10.5]} 14... b4 {[%clk 0:04:13]} 15. c3 {[%clk 0:04:07.6]}
15... bxc3 {[%clk 0:04:11.1]} 16. bxc3 {[%clk 0:04:06.7]} 16... Nc6 {[%clk
0:04:03]} 17. Qg3 {[%clk 0:03:58.1]} 17... dxe4 {[%clk 0:03:58.2]} 18. dxe4
{[%clk 0:03:55.5]} 18... f5 {[%clk 0:03:49.9]} 19. e5 {[%clk 0:03:41.2]} 19...
Qb6 {[%clk 0:03:46.7]} 20. Kh1 {[%clk 0:03:36.5]} 20... Rad8 {[%clk 0:03:40.7]}
21. Be3 {[%clk 0:03:28.3]} 21... Ne7 {[%clk 0:03:33.3]} 22. Qf2 {[%clk
0:03:21.4]} 22... Rc8 {[%clk 0:03:29.5]} 23. c4 {[%clk 0:03:07.4]} 23... Rfd8
{[%clk 0:03:26.6]} 24. Nc3 {[%clk 0:03:05.2]} 24... a6 {[%clk 0:03:25]} 25. Rab1
{[%clk 0:03:01.3]} 25... Qa7 {[%clk 0:03:23.8]} 26. Na4 {[%clk 0:02:51.9]} 26...
a5 {[%clk 0:02:46.9]} 27. Bxc5 {[%clk 0:02:47.5]} 27... Qd7 {[%clk 0:02:39.3]}
28. Nb6 {[%clk 0:02:36.1]} 28... Qe8 {[%clk 0:02:22.5]} 29. Nxc8 {[%clk
0:02:32.9]} 29... Rxc8 {[%clk 0:02:21.6]} 30. Bxe7 {[%clk 0:02:31.2]} 30... Qxe7
{[%clk 0:02:21.5]} 31. Rfc1 {[%clk 0:02:18.7]} 31... Bf8 {[%clk 0:02:19.9]} 32.
Qb6 {[%clk 0:02:11.4]} 32... Ra8 {[%clk 0:02:01.3]} 33. Qb7 {[%clk 0:02:07.8]}
33... Qxb7 {[%clk 0:01:46.8]} 34. Rxb7 {[%clk 0:02:06.3]} 34... h5 {[%clk
0:01:45.4]} 35. c5 {[%clk 0:02:03.9]} 35... Rc8 {[%clk 0:01:41.9]} 36. c6 {[%clk
0:02:02]} 36... h4 {[%clk 0:01:36.4]} 37. c7 {[%clk 0:01:59.6]} 1-0

[Event "Live Chess"]
[Site "Chess.com"]
[Date "2024.06.01"]
[Round "-"]
[White "Cruiseylee78"]
[Black "Queensandpawns"]
[Result "0-1"]
[WhiteElo "1707"]
[BlackElo "2399"]
[TimeControl "300"]
[EndTime "12:14:38 PDT"]
[Termination "Queensandpawns won by resignation"]

1. d4 {[%clk 0:04:58.2]} 1... e5 {[%clk 0:04:59.6]} 2. e4 {[%clk 0:04:55.9]}
2... exd4 {[%clk 0:04:58.6]} 3. c3 {[%clk 0:04:55.3]} 3... Nc6 {[%clk
0:04:58.5]} 4. Nf3 {[%clk 0:04:53.4]} 4... d5 {[%clk 0:04:58.4]} 5. e5 {[%clk
0:04:48.7]} 5... dxc3 {[%clk 0:04:56.7]} 6. Nxc3 {[%clk 0:04:47.6]} 6... Bg4
{[%clk 0:04:56.6]} 7. Be2 {[%clk 0:04:45.4]} 7... d4 {[%clk 0:04:55]} 8. Ne4
{[%clk 0:04:41.8]} 8... Qd5 {[%clk 0:04:54.5]} 9. Nc3 {[%clk 0:04:29.9]} 9...
Qa5 {[%clk 0:04:52.1]} 10. Bd2 {[%clk 0:04:22.6]} 10... dxc3 {[%clk 0:04:48.4]}
11. Bxc3 {[%clk 0:04:22.5]} 11... Bb4 {[%clk 0:04:47.3]} 12. Qd2 {[%clk
0:04:16.7]} 12... Rd8 {[%clk 0:04:45.3]} 13. Qc2 {[%clk 0:04:15.7]} 13... Bxc3+
{[%clk 0:04:43.3]} 14. bxc3 {[%clk 0:04:15.6]} 14... Nge7 {[%clk 0:04:40.6]} 15.
O-O {[%clk 0:04:14.5]} 15... O-O {[%clk 0:04:39]} 16. h3 {[%clk 0:04:13.8]}
16... Bf5 {[%clk 0:04:37.7]} 17. Qb3 {[%clk 0:04:09.7]} 17... Nxe5 {[%clk
0:04:35.9]} 18. Nxe5 {[%clk 0:04:08.4]} 18... Qxe5 {[%clk 0:04:35.8]} 19. Rfe1
{[%clk 0:04:06.4]} 19... Be6 {[%clk 0:04:32.2]} 20. Bc4 {[%clk 0:04:01.9]} 20...
Bxc4 {[%clk 0:04:26.5]} 21. Rxe5 {[%clk 0:04:01]} 21... Bxb3 {[%clk 0:04:25.5]}
22. Rxe7 {[%clk 0:04:00.1]} 22... Bd5 {[%clk 0:04:22.2]} 23. Rd1 {[%clk
0:03:58]} 23... Bc6 {[%clk 0:04:22.1]} 24. Rxc7 {[%clk 0:03:56.6]} 24... Rxd1+
{[%clk 0:04:20.8]} 0-1